{"text_format":"3","workbook":"xlsx","n_sheets":4,"sheets":["Відомості про грошові кошти","Витрачені кошти","Щомісячне зведення","Дані діаграми"],"not_rendered":{"charts":2,"defined_names":7,"pivot_tables":2},"read":"whole","date_system":"1900"}

{"sheet":"Відомості про грошові кошти","index":0,"n_rows":22,"n_cols":7,"rows_kept":22,"merged":[[0,1,1,5],[2,1,2,2],[2,3,2,4],[3,1,18,1],[19,1,20,1],[21,1,22,1]]}
[null,"Засіб відстеження особистих коштів"]
[{"$nulls":6},"Витрачено готівки >"]
[{"$nulls":3},"Зведення щодо готівки"]
[null,"Стовпчаста діаграма відображає відсоток доступної готівки в цій клітинці.",null,"Рахунок","Початкова сума","Витрачено всього","Залишок готівки"]
[{"$nulls":3},"Поточний",{"v":3000,"d":"3000.00"},{"$f":"SUMIF(ВитраченіКошти[Рахунок],\"=\" &ТаблицяВідомостейПроГрошовіКошти[[#This Row],[Рахунок]],ВитраченіКошти[Сума])","v":{"v":496,"d":"496.00"}},{"$f":"ТаблицяВідомостейПроГрошовіКошти[[#This Row],[Початкова сума]]-ТаблицяВідомостейПроГрошовіКошти[[#This Row],[Витрачено всього]]","v":{"v":2504,"d":"2504.00"}}]
[{"$nulls":3},"Ощадний",{"v":500,"d":"500.00"},{"$f":"SUMIF(ВитраченіКошти[Рахунок],\"=\" &ТаблицяВідомостейПроГрошовіКошти[[#This Row],[Рахунок]],ВитраченіКошти[Сума])","v":{"v":450,"d":"450.00"}},{"$f":"ТаблицяВідомостейПроГрошовіКошти[[#This Row],[Початкова сума]]-ТаблицяВідомостейПроГрошовіКошти[[#This Row],[Витрачено всього]]","v":{"v":50,"d":"50.00"}}]
[{"$nulls":3},"Інше",{"v":200,"d":"200.00"},{"$f":"SUMIF(ВитраченіКошти[Рахунок],\"=\" &ТаблицяВідомостейПроГрошовіКошти[[#This Row],[Рахунок]],ВитраченіКошти[Сума])","v":{"v":30,"d":"30.00"}},{"$f":"ТаблицяВідомостейПроГрошовіКошти[[#This Row],[Початкова сума]]-ТаблицяВідомостейПроГрошовіКошти[[#This Row],[Витрачено всього]]","v":{"v":170,"d":"170.00"}}]
[{"$nulls":3},"Усього",{"$f":"SUBTOTAL(109,ТаблицяВідомостейПроГрошовіКошти[Початкова сума])","v":{"v":3700,"d":"3700.00"}},{"$f":"SUBTOTAL(109,ТаблицяВідомостейПроГрошовіКошти[Витрачено всього])","v":{"v":976,"d":"976.00"}},{"$f":"SUBTOTAL(109,ТаблицяВідомостейПроГрошовіКошти[Залишок готівки])","v":{"v":2724,"d":"2724.00"}}]
{"$rows_empty":11}
[null,"Грошові кошти\nЗалишок:"]
[]
[null,{"$f":"ТаблицяВідомостейПроГрошовіКошти[[#Totals],[Залишок готівки]]/ТаблицяВідомостейПроГрошовіКошти[[#Totals],[Початкова сума]]","v":{"v":0.7362162162162162,"d":"74%"}}]

{"sheet":"Витрачені кошти","index":1,"n_rows":16,"n_cols":6,"rows_kept":16,"merged":[[0,1,1,3],[2,1,2,2],[3,5,6,6],[7,5,14,6]]}
[null,"Засіб відстеження особистих коштів"]
[{"$nulls":4},"< Зведення щодо готівки","Щомісячне зведення >"]
[null,"Витрачено готівки"]
[null,"Дата","Опис","Сума","Рахунок","У цій клітинці міститься роздільник для фільтрування даних таблиці витрат за типом рахунку."]
[null,{"$f":"TODAY()+105","v":"2023-03-28"},"Зняття готівки в банкоматі",{"v":40,"d":"40.00"},"Поточний"]
[null,{"$f":"TODAY()+106","v":"2023-03-29"},"Обід",{"v":5,"d":"5.00"},"Поточний"]
[null,{"$f":"TODAY()+107","v":"2023-03-30"},"Оплата за авто",{"v":230,"d":"230.00"},"Ощадний"]
[null,{"$f":"TODAY()+135","v":"2023-04-27"},"Оплата електроенергії",{"v":70,"d":"70.00"},"Поточний","У цій клітинці міститься роздільник для фільтрування даних таблиці за описом."]
[null,{"$f":"TODAY()+139","v":"2023-05-01"},"Вечеря",{"v":53,"d":"53.00"},"Поточний"]
[null,{"$f":"TODAY()+162","v":"2023-05-24"},"Зняття готівки",{"v":100,"d":"100.00"},"Ощадний"]
[null,{"$f":"TODAY()+167","v":"2023-05-29"},"Оплата за авто",{"v":230,"d":"230.00"},"Поточний"]
[null,{"$f":"TODAY()+198","v":"2023-06-29"},"Оплата електроенергії",{"v":70,"d":"70.00"},"Ощадний"]
[null,{"$f":"TODAY()+212","v":"2023-07-13"},"Зняття готівки в банкоматі",{"v":30,"d":"30.00"},"Поточний"]
[null,{"$f":"TODAY()+225","v":"2023-07-26"},"Зняття готівки в банкоматі",{"v":50,"d":"50.00"},"Ощадний"]
[null,{"$f":"TODAY()+232","v":"2023-08-02"},"Зняття готівки в банкоматі",{"v":30,"d":"30.00"},"Інше"]
[null,{"$f":"TODAY()+283","v":"2023-09-22"},"Оплата електроенергії",{"v":68,"d":"68.00"},"Поточний"]

{"sheet":"Щомісячне зведення","index":2,"n_rows":39,"n_cols":6,"rows_kept":39,"merged":[[0,1,1,4],[2,1,2,5],[3,1,3,6],[4,1,16,4],[4,5,8,6],[9,5,16,6],[17,1,17,5]]}
[null,"Щомісячне зведення"]
[{"$nulls":5},"< Витрачено готівки"]
[null,"Щоб оновити ці дані, виділіть зведену діаграму.  Клацніть правою кнопкою миші, щоб відкрити контекстне меню.  Виберіть \"Оновити\" або \"Оновити все\", щоб оновити діаграму."]
[null,"Підсумок по рахунках"]
[null,"Стовпчаста діаграма підсумків по рахунку, яка порівнює поточний рахунок, ощадний рахунок та інші рахунки за кожний місяць, міститься в цій клітинці.",{"$nulls":3},"У цій клітинці міститься роздільник для фільтрування даних діаграми за типом рахунку."]
[]
[]
[]
[]
[{"$nulls":5},"У цій клітинці міститься роздільник для фільтрування даних діаграми за описом."]
{"$rows_empty":7}
[null,"Зведення витрат"]
[null,"Відомості"]
[null,null,"Поточний","Ощадний","Інше","Загальний підсумок"]
[null,"Бер",{"v":45,"d":"45.00"},{"v":230,"d":"230.00"},null,{"v":275,"d":"275.00"}]
[null,"Зняття готівки в банкоматі",{"v":40,"d":"40.00"},null,null,{"v":40,"d":"40.00"}]
[null,"Обід",{"v":5,"d":"5.00"},null,null,{"v":5,"d":"5.00"}]
[null,"Оплата за авто",null,{"v":230,"d":"230.00"},null,{"v":230,"d":"230.00"}]
[null,"Кві",{"v":70,"d":"70.00"},null,null,{"v":70,"d":"70.00"}]
[null,"Оплата електроенергії",{"v":70,"d":"70.00"},null,null,{"v":70,"d":"70.00"}]
[null,"Тра",{"v":283,"d":"283.00"},{"v":100,"d":"100.00"},null,{"v":383,"d":"383.00"}]
[null,"Вечеря",{"v":53,"d":"53.00"},null,null,{"v":53,"d":"53.00"}]
[null,"Зняття готівки",null,{"v":100,"d":"100.00"},null,{"v":100,"d":"100.00"}]
[null,"Оплата за авто",{"v":230,"d":"230.00"},null,null,{"v":230,"d":"230.00"}]
[null,"Чер",null,{"v":70,"d":"70.00"},null,{"v":70,"d":"70.00"}]
[null,"Оплата електроенергії",null,{"v":70,"d":"70.00"},null,{"v":70,"d":"70.00"}]
[null,"Лип",{"v":30,"d":"30.00"},{"v":50,"d":"50.00"},null,{"v":80,"d":"80.00"}]
[null,"Зняття готівки в банкоматі",{"v":30,"d":"30.00"},{"v":50,"d":"50.00"},null,{"v":80,"d":"80.00"}]
[null,"Сер",null,null,{"v":30,"d":"30.00"},{"v":30,"d":"30.00"}]
[null,"Зняття готівки в банкоматі",null,null,{"v":30,"d":"30.00"},{"v":30,"d":"30.00"}]
[null,"Вер",{"v":68,"d":"68.00"},null,null,{"v":68,"d":"68.00"}]
[null,"Оплата електроенергії",{"v":68,"d":"68.00"},null,null,{"v":68,"d":"68.00"}]
[null,"Загальний підсумок",{"v":496,"d":"496.00"},{"v":450,"d":"450.00"},{"v":30,"d":"30.00"},{"v":976,"d":"976.00"}]

{"sheet":"Дані діаграми","index":3,"n_rows":12,"n_cols":6,"rows_kept":12,"merged":[[0,1,0,5]]}
[null,"Дані зведеної діаграми"]
[null,"Ця зведена таблиця є джерелом даних для зведеної діаграми зведення по рахунку на аркуші щомісячного зведення."]
[null,"Сума з Сума","Позначки стовпців"]
[null,"Позначки рядків","Поточний","Ощадний","Інше","Загальний підсумок"]
[null,"Бер",{"v":45,"d":"45.00"},{"v":230,"d":"230.00"},null,{"v":275,"d":"275.00"}]
[null,"Кві",{"v":70,"d":"70.00"},null,null,{"v":70,"d":"70.00"}]
[null,"Тра",{"v":283,"d":"283.00"},{"v":100,"d":"100.00"},null,{"v":383,"d":"383.00"}]
[null,"Чер",null,{"v":70,"d":"70.00"},null,{"v":70,"d":"70.00"}]
[null,"Лип",{"v":30,"d":"30.00"},{"v":50,"d":"50.00"},null,{"v":80,"d":"80.00"}]
[null,"Сер",null,null,{"v":30,"d":"30.00"},{"v":30,"d":"30.00"}]
[null,"Вер",{"v":68,"d":"68.00"},null,null,{"v":68,"d":"68.00"}]
[null,"Загальний підсумок",{"v":496,"d":"496.00"},{"v":450,"d":"450.00"},{"v":30,"d":"30.00"},{"v":976,"d":"976.00"}]